[Event "26th Zadar Open 2019"]
[Site "Zadar"]
[Date "2019.12.20"]
[Round "7.14"]
[White "Nguyen, Piotr"]
[Black "Guttenthaler, Franz"]
[Result "1-0"]
[ECO "A13"]
[WhiteElo "2413"]
[BlackElo "2304"]
[Annotator "NA"]
[PlyCount "121"]
[EventDate "2019.12.15"]
[EventType "swiss"]
[EventCountry "CRO"]
[SourceTitle "playchess.com"]
[Source "ChessBase"]
[SourceQuality "1"]
[TimeControl "40/5400+30:1800+30"]

1. g3 {[%emt 0:00:30]} d5 {[%emt 0:00:30]} 2. Nf3 {[%emt 0:00:00]} e6 {[%emt 0:00:30]} 3. Bg2 {[%emt 0:00:00]} Nf6 {[%emt 0:01:30]} 4. O-O {[%emt 0:00:30]} Be7 {[%emt 0:01:30]} 5. c4 {[%emt 0:01:30]} dxc4 {[%emt 0:02:30]} 6. Na3 {[%emt 0:00:30]} c5 {[%emt 0:00:30]} 7. Nxc4 {[%emt 0:01:30]} Nc6 {[%emt 0:00:30]} 8. b3 {[%emt 0:01:30]} O-O {[%emt 0:01:30]} 9. Bb2 {[%emt 0:00:30]} Nd5 {[%emt 0:03:30]} 10. d4 {[%emt 0:04:30]} b5 $14 {[%emt 0:03:30]} 11. Nce5 {[%emt 0:05:30]} Nxe5 {[%emt 0:03:30]} 12. Nxe5 {[%emt 0:00:30]} Bb7 {[%emt 0:00:30]} 13. dxc5 {[%emt 0:11:30]} Bxc5 {[%emt 0:00:30]} 14. Rc1 {[%emt 0:00:30]} Rc8 {[%emt 0:04:30]} 15. e4 {[%emt 0:09:30]} Nf6 {[%emt 0:07:30]} 16. Qe2 {[%emt 0:06:30]} Qb6 {[%emt 0:01:30]} 17. Rfd1 {[%emt 0:13:30]} Rfd8 {[%emt 0:01:30]} 18. Nd3 {[%emt 0:05:30]} Bd4 {[%emt 0:05:30]} 19. Rxc8 {[%emt 0:02:30]} Rxc8 {[%emt 0:01:30]} 20. Bxd4 {[%emt 0:11:30]} Qxd4 {[%emt 0:01:30]} 21. Nf4 {[%emt 0:00:00]} Qe5 {[%emt 0:01:30]} 22. f3 {[%emt 0:00:00]} h5 {[%emt 0:04:30]} 23. Qf2 {[%emt 0:03:30]} a6 {[%emt 0:06:30]} 24. b4 {[%emt 0:00:36]} Qc3 {[%emt 0:02:30]} 25. Nd3 {[%emt 0:01:09]} Rd8 {[%emt 0:01:30]} 26. Bf1 {[%emt 0:00:33]} Qd4 {[%emt 0:02:30]} 27. Qxd4 {[%emt 0:05:00]} Rxd4 {[%emt 0:00:00]} 28. Rc1 {[%emt 0:00:04]} Rd8 {[%emt 0:06:00]} 29. Nc5 {[%emt 0:08:11]} Bc8 {[%emt 0:05:30]} 30. a4 {[%emt 0:03:22]} bxa4 {[%emt 0:02:30]} 31. Ra1 {[%emt 0:00:43]} Nd7 {[%emt 0:00:30]} 32. Rxa4 {[%emt 0:00:31]} Nxc5 {[%emt 0:00:30]} 33. bxc5 {[%emt 0:00:03]} Rd1 {[%emt 0:05:30]} 34. Rb4 {[%emt 0:01:08]} Kh7 {[%emt 0:00:30]} 35. Rb8 {[%emt 0:00:35]} Bd7 {[%emt 0:01:30]} 36. Rd8 {[%emt 0:00:51]} Kg6 {[%emt 0:00:00]} 37. c6 {[%emt 0:01:41]} Rxf1+ {[%emt 0:00:00]} 38. Kxf1 {[%emt 0:01:23]} Bxc6 {[%emt 0:01:30]} 39. Kf2 {[%emt 0:00:30]} Kf6 {[%emt 0:00:30]} 40. Rc8 {[%emt 0:00:26]} Bb5 {[%emt 0:00:30]} 41. h4 {[%emt 0:31:12]} g6 {[%emt 0:06:30]} 42. Ke3 {[%emt 0:00:00]} e5 {[%emt 0:03:30]} 43. f4 {[%emt 0:00:00]} exf4+ {[%emt 0:03:30]} 44. gxf4 {[%emt 0:00:00]} Ke6 {[%emt 0:03:30]} 45. Rb8 {[%emt 0:00:00]} Kf6 {[%emt 0:02:30]} 46. Kd4 {[%emt 0:00:00]} Be2 {[%emt 0:00:30]} 47. Rb6+ {[%emt 0:00:00]} Kg7 {[%emt 0:01:30]} 48. Rb2 {[%emt 0:00:00]} Bf1 {[%emt 0:00:30]} 49. Ke5 {[%emt 0:00:00]} Bc4 {[%emt 0:00:30]} 50. Rb7 {[%emt 0:00:00]} Bd3 {[%emt 0:01:30]} 51. Rc7 {[%emt 0:00:00]} Be2 {[%emt 0:00:30]} 52. f5 {[%emt 0:00:00]} gxf5 {[%emt 0:00:30]} 53. exf5 {[%emt 0:00:00]} Bd1 {[%emt 0:00:30]} 54. Rc1 {[%emt 0:00:00]} Bb3 {[%emt 0:03:30]} 55. Rg1+ {[%emt 0:00:00]} Kh6 {[%emt 0:00:30]} 56. Ra1 {[%emt 0:00:00]} Bc4 {[%emt 0:00:00]} 57. Kf6 {[%emt 0:00:00]} Kh7 {[%emt 0:00:00]} 58. Ra4 {[%emt 0:00:00]} Bd3 {[%emt 0:01:30]} 59. Rd4 {[%emt 0:00:00]} Bc2 {[%emt 0:00:00]} 60. Rd7 {[%emt 0:00:00]} Bb3 {[%emt 0:00:00]} 61. Ra7 {[%emt 0:00:25]} 1-0

[Event "26th Zadar Open 2019"]
[Site "Zadar"]
[Date "2019.12.20"]
[Round "7.15"]
[White "Sinanovic, Muhamed"]
[Black "Lye, Lik Zang"]
[Result "1/2-1/2"]
[ECO "A36"]
[WhiteElo "2309"]
[BlackElo "2379"]
[Annotator "NA"]
[PlyCount "82"]
[EventDate "2019.12.15"]
[EventType "swiss"]
[EventCountry "CRO"]
[SourceTitle "playchess.com"]
[Source "ChessBase"]
[SourceQuality "1"]
[TimeControl "40/5400+30:1800+30"]

1. c4 {[%emt 0:00:30]} c5 {[%emt 0:00:30]} 2. g3 {[%emt 0:01:30]} Nc6 {[%emt 0:00:30]} 3. Bg2 {[%emt 0:00:30]} g6 {[%emt 0:00:00]} 4. Nc3 {[%emt 0:00:30]} Bg7 {[%emt 0:00:00]} 5. Nh3 {[%emt 0:02:30]} h5 {[%emt 0:06:30]} 6. d3 $11 {[%emt 0:10:30]} d6 {[%emt 0:05:30]} 7. Nf4 {[%emt 0:12:30]} g5 {[%emt 0:07:30]} 8. Nh3 {[%emt 0:00:30]} g4 {[%emt 0:04:30]} 9. Nf4 {[%emt 0:00:00]} h4 {[%emt 0:00:30]} 10. O-O {[%emt 0:05:00]} Nf6 {[%emt 0:07:30]} 11. Rb1 {[%emt 0:05:30]} O-O {[%emt 0:15:30]} 12. a3 {[%emt 0:00:30]} e5 {[%emt 0:06:30]} 13. Nfd5 {[%emt 0:00:30]} Nxd5 {[%emt 0:00:30]} 14. Nxd5 {[%emt 0:00:30]} Be6 {[%emt 0:01:30]} 15. b4 {[%emt 0:01:30]} Rb8 {[%emt 0:03:30]} 16. b5 {[%emt 0:17:30]} Nd4 {[%emt 0:02:30]} 17. e3 {[%emt 0:00:30]} Nf5 {[%emt 0:02:30]} 18. Bd2 {[%emt 0:07:30]} Ne7 {[%emt 0:02:30]} 19. a4 {[%emt 0:09:30]} f5 {[%emt 0:04:30]} 20. Nxe7+ {[%emt 0:05:00]} Qxe7 {[%emt 0:00:00]} 21. Qc2 {[%emt 0:05:06]} Qf7 {[%emt 0:04:00]} 22. f3 {[%emt 0:00:19]} hxg3 {[%emt 0:10:29]} 23. hxg3 {[%emt 0:00:50]} f4 {[%emt 0:04:55]} 24. fxg4 {[%emt 0:01:06]} Qg6 {[%emt 0:00:11]} 25. gxf4 {[%emt 0:01:51]} exf4 {[%emt 0:01:32]} 26. Rbe1 {[%emt 0:01:46]} fxe3 {[%emt 0:05:54]} 27. Bxe3 {[%emt 0:00:09]} Bxg4 {[%emt 0:00:34]} 28. Bd5+ {[%emt 0:01:09]} Be6+ {[%emt 0:01:19]} 29. Qg2 {[%emt 0:00:07]} Qxg2+ {[%emt 0:01:24]} 30. Bxg2 {[%emt 0:00:30]} Rxf1+ {[%emt 0:01:07]} 31. Rxf1 {[%emt 0:00:50]} b6 {[%emt 0:00:17]} 32. Bf4 {[%emt 0:02:38]} Rd8 {[%emt 0:00:36]} 33. Re1 {[%emt 0:01:29]} Kf7 {[%emt 0:00:34]} 34. Rf1 {[%emt 0:02:47]} Kg8 {[%emt 0:00:45]} 35. Bg5 {[%emt 0:00:38]} Rd7 {[%emt 0:00:29]} 36. Re1 {[%emt 0:02:08]} Bd4+ {[%emt 0:00:24]} 37. Be3 {[%emt 0:00:30]} Bc3 {[%emt 0:00:25]} 38. Rc1 {[%emt 0:00:26]} Be5 {[%emt 0:00:25]} 39. Kf2 {[%emt 0:00:45]} Rf7+ {[%emt 0:00:55]} 40. Ke2 {[%emt 0:00:11]} Rg7 {[%emt 0:00:19]} 41. Bf3 {[%emt 0:30:34]} Rg3 {[%emt 0:30:40]} 1/2-1/2

[Event "26th Zadar Open 2019"]
[Site "Zadar"]
[Date "2019.12.20"]
[Round "7.16"]
[White "Vidic, Teja"]
[Black "Bratovic, Blaz"]
[Result "1/2-1/2"]
[ECO "B07"]
[WhiteElo "2221"]
[BlackElo "2359"]
[Annotator "NA"]
[PlyCount "113"]
[EventDate "2019.12.15"]
[EventType "swiss"]
[EventCountry "CRO"]
[SourceTitle "playchess.com"]
[Source "ChessBase"]
[SourceQuality "1"]
[TimeControl "40/5400+30:1800+30"]

1. e4 {[%emt 0:00:30]} d6 {[%emt 0:00:30]} 2. d4 {[%emt 0:00:00]} Nf6 {[%emt 0:00:30]} 3. Nc3 {[%emt 0:00:00]} g6 {[%emt 0:00:00]} 4. Be3 {[%emt 0:06:30]} c6 {[%emt 0:00:00]} 5. Qd2 {[%emt 0:05:30]} Nbd7 {[%emt 0:11:30]} 6. O-O-O $11 {[%emt 0:02:30]} Qa5 {[%emt 0:02:30]} 7. f3 {[%emt 0:02:30]} b5 {[%emt 0:00:30]} 8. Kb1 {[%emt 0:00:00]} b4 {[%emt 0:01:30]} 9. Nce2 {[%emt 0:00:00]} Nb6 {[%emt 0:00:00]} 10. Nc1 {[%emt 0:01:30]} Be6 {[%emt 0:06:00]} 11. g4 {[%emt 0:11:30]} Nc4 {[%emt 0:00:30]} 12. Bxc4 {[%emt 0:00:30]} Bxc4 {[%emt 0:00:30]} 13. Nge2 {[%emt 0:08:30]} Nd7 {[%emt 0:12:30]} 14. Ng3 {[%emt 0:09:30]} Nb6 {[%emt 0:00:30]} 15. h4 {[%emt 0:04:30]} Be6 {[%emt 0:04:30]} 16. Nb3 {[%emt 0:08:30]} Qb5 {[%emt 0:06:30]} 17. d5 {[%emt 0:03:30]} cxd5 {[%emt 0:01:30]} 18. Bxb6 {[%emt 0:05:30]} Qxb6 {[%emt 0:06:30]} 19. exd5 {[%emt 0:00:00]} Bd7 {[%emt 0:00:30]} 20. h5 {[%emt 0:01:00]} Bg7 {[%emt 0:00:30]} 21. hxg6 {[%emt 0:00:30]} hxg6 {[%emt 0:01:30]} 22. Rxh8+ {[%emt 0:03:30]} Bxh8 {[%emt 0:00:00]} 23. Re1 {[%emt 0:00:30]} Kf8 {[%emt 0:06:00]} 24. Ne4 {[%emt 0:01:30]} Ba4 {[%emt 0:03:30]} 25. Ng5 {[%emt 0:03:30]} Bxb3 {[%emt 0:00:30]} 26. axb3 {[%emt 0:00:30]} Qd4 {[%emt 0:00:30]} 27. Qxd4 {[%emt 0:01:30]} Bxd4 {[%emt 0:00:00]} 28. Re4 {[%emt 0:00:00]} Bc5 {[%emt 0:07:00]} 29. Rf4 {[%emt 0:03:26]} f6 {[%emt 0:00:00]} 30. Ne6+ {[%emt 0:00:15]} Kf7 {[%emt 0:00:00]} 31. Rc4 {[%emt 0:01:14]} Rc8 {[%emt 0:12:16]} 32. Kc1 {[%emt 0:01:09]} Ke8 {[%emt 0:10:32]} 33. Kd2 {[%emt 0:01:13]} Kd7 {[%emt 0:00:08]} 34. Kd3 {[%emt 0:02:22]} a5 {[%emt 0:02:13]} 35. Ke4 {[%emt 0:00:49]} g5 {[%emt 0:01:16]} 36. Kd3 {[%emt 0:07:37]} Rh8 {[%emt 0:01:35]} 37. Nxc5+ {[%emt 0:00:18]} dxc5 {[%emt 0:00:02]} 38. Rxc5 {[%emt 0:00:08]} Kd6 {[%emt 0:00:04]} 39. Rxa5 {[%emt 0:01:09]} Ke5 {[%emt 0:00:28]} 40. d6+ {[%emt 0:06:09]} Kxd6 {[%emt 0:00:00]} 41. c4 {[%emt 0:08:11]} Rh3 {[%emt 0:01:56]} 42. Ke4 {[%emt 0:00:30]} Rh2 {[%emt 0:00:30]} 43. Rb5 {[%emt 0:02:30]} Re2+ {[%emt 0:00:00]} 44. Kd3 {[%emt 0:00:30]} Rxb2 {[%emt 0:01:00]} 45. Rxb4 {[%emt 0:00:30]} Ke5 {[%emt 0:00:00]} 46. Ke3 {[%emt 0:00:30]} e6 {[%emt 0:00:00]} 47. Rb5+ {[%emt 0:00:30]} Kd6 {[%emt 0:00:30]} 48. Rb6+ {[%emt 0:02:27]} Ke5 {[%emt 0:00:30]} 49. Rb5+ {[%emt 0:00:38]} Kd6 {[%emt 0:00:00]} 50. f4 {[%emt 0:03:06]} gxf4+ {[%emt 0:00:00]} 51. Kxf4 {[%emt 0:00:04]} Rf2+ {[%emt 0:00:00]} 52. Ke3 {[%emt 0:02:02]} Rg2 {[%emt 0:01:00]} 53. Rb6+ {[%emt 0:01:22]} Ke5 {[%emt 0:00:30]} 54. Rb5+ {[%emt 0:00:11]} Kd6 {[%emt 0:00:00]} 55. Rb6+ {[%emt 0:05:23]} Ke5 {[%emt 0:00:00]} 56. Rb5+ {[%emt 0:00:04]} Kd6 {[%emt 0:00:30]} 57. Rb6+ {[%emt 0:03:49]} 1/2-1/2

[Event "26th Zadar Open 2019"]
[Site "Zadar"]
[Date "2019.12.20"]
[Round "7.17"]
[White "Sai Agni Jeevitesh, J."]
[Black "Martinovic, Sasa"]
[Result "0-1"]
[ECO "A11"]
[WhiteElo "2301"]
[BlackElo "2544"]
[Annotator "ChessBase"]
[PlyCount "60"]
[EventDate "2019.12.15"]
[EventType "swiss"]
[EventCountry "CRO"]
[SourceTitle "playchess.com"]
[Source "ChessBase"]
[SourceQuality "1"]
[TimeControl "40/5400+30:1800+30"]

1. Nf3 {[%emt 0:00:30]} Nf6 {[%emt 0:00:30]} 2. c4 {[%emt 0:00:00]} c6 {[%emt 0:00:00]} 3. Nc3 {[%emt 0:00:00]} d5 {[%emt 0:00:00]} 4. e3 {[%emt 0:00:30]} e6 {[%emt 0:00:30]} 5. b3 {[%emt 0:00:30]} Bd6 {[%emt 0:00:30]} 6. Bb2 {[%emt 0:00:00]} O-O {[%emt 0:00:30]} 7. Qc2 {[%emt 0:00:00]} e5 {[%emt 0:00:30]} 8. cxd5 {[%emt 0:01:30]} cxd5 {[%emt 0:00:00]} 9. Nb5 {[%emt 0:01:30]} Nc6 {[%emt 0:00:00]} 10. Nxd6 {[%emt 0:01:30]} Qxd6 {[%emt 0:00:30]} 11. d4 {[%emt 0:28:30]} Nb4 {[%emt 0:00:30]} 12. Qd1 {[%emt 0:11:30]} e4 {[%emt 0:00:30]} 13. Ne5 {[%emt 0:06:30]} Ne8 {[%emt 0:00:00]} 14. a3 {[%emt 0:03:30]} f6 {[%emt 0:00:00]} 15. Bc3 {[%emt 0:14:30]} Na6 {[%emt 0:04:30]} 16. Bxa6 {[%emt 0:00:30]} Qxa6 {[%emt 0:02:30]} 17. Bb4 {[%emt 0:00:00]} Nd6 {[%emt 0:22:30]} 18. f4 {[%emt 0:03:00]} exf3 {[%emt 0:24:30]} 19. Nxf3 {[%emt 0:07:13]} Bf5 {[%emt 0:00:30]} 20. Bxd6 {[%emt 0:01:35]} Qxd6 {[%emt 0:00:30]} 21. O-O {[%emt 0:00:01]} Rac8 {[%emt 0:00:30]} 22. Nh4 {[%emt 0:03:43]} Be4 {[%emt 0:08:30]} 23. Rc1 {[%emt 0:04:59]} Qxa3 {[%emt 0:01:30]} 24. Ra1 {[%emt 0:04:39]} Qb2 {[%emt 0:05:30]} 25. Rxa7 {[%emt 0:00:02]} Rc2 {[%emt 0:00:30]} 26. Qg4 {[%emt 0:00:01]} Qxb3 {[%emt 0:00:30]} 27. Qe6+ {[%emt 0:01:34]} Kh8 {[%emt 0:00:00]} 28. Qf7 {[%emt 0:01:11]} Qxe3+ {[%emt 0:04:00]} 29. Kh1 {[%emt 0:00:01]} Rg8 {[%emt 0:00:00]} 30. Rxf6 {[%emt 0:03:10]} Qh3 {[%emt 0:00:00]} 0-1

[Event "26th Zadar Open 2019"]
[Site "Zadar"]
[Date "2019.12.20"]
[Round "7.18"]
[White "Moksh Amit Doshi"]
[Black "Ascic, Pero"]
[Result "1-0"]
[ECO "E71"]
[WhiteElo "2399"]
[BlackElo "2310"]
[Annotator "NA"]
[PlyCount "47"]
[EventDate "2019.12.15"]
[EventType "swiss"]
[EventCountry "CRO"]
[SourceTitle "playchess.com"]
[Source "ChessBase"]
[SourceQuality "1"]
[TimeControl "40/5400+30:1800+30"]

1. d4 {[%emt 0:01:30]} Nf6 {[%emt 0:01:30]} 2. c4 {[%emt 0:00:30]} g6 {[%emt 0:00:00]} 3. Nc3 {[%emt 0:00:30]} Bg7 {[%emt 0:00:00]} 4. e4 {[%emt 0:00:00]} d6 {[%emt 0:00:30]} 5. h3 {[%emt 0:01:00]} c6 {[%emt 0:01:30]} 6. Be3 {[%emt 0:01:30]} Nbd7 {[%emt 0:00:00]} 7. g4 {[%emt 0:02:30]} e5 {[%emt 0:06:00]} 8. d5 {[%emt 0:00:30]} cxd5 {[%emt 0:04:30]} 9. cxd5 {[%emt 0:00:30]} O-O $14 {[%emt 0:07:30]} 10. Nge2 {[%emt 0:01:30]} b5 {[%emt 0:07:30]} 11. Ng3 {[%emt 0:06:30]} b4 {[%emt 0:04:30]} 12. Nb5 {[%emt 0:01:30]} Nc5 {[%emt 0:15:30]} 13. Qc2 {[%emt 0:00:30]} Nfxe4 {[%emt 0:16:30]} 14. Nxe4 {[%emt 0:02:30]} Nxe4 {[%emt 0:00:00]} 15. Qxe4 {[%emt 0:00:30]} f5 {[%emt 0:00:00]} 16. Qxb4 {[%emt 0:01:30]} f4 {[%emt 0:01:30]} 17. Bd2 {[%emt 0:00:30]} e4 {[%emt 0:00:30]} 18. Bc3 {[%emt 0:02:30]} e3 {[%emt 0:00:30]} 19. O-O-O {[%emt 0:00:30]} Bxc3 {[%emt 0:02:30]} 20. Nxc3 {[%emt 0:00:00]} exf2 {[%emt 0:00:30]} 21. Rh2 {[%emt 0:00:00]} a5 {[%emt 0:00:30]} 22. Qd4 {[%emt 0:00:30]} Bd7 {[%emt 0:00:30]} 23. Rxf2 {[%emt 0:00:00]} f3 {[%emt 0:00:30]} 24. Rd3 {[%emt 0:00:00]} 1-0

[Event "26th Zadar Open 2019"]
[Site "Zadar"]
[Date "2019.12.20"]
[Round "7.19"]
[White "Krasteva, Beloslava"]
[Black "Nester, Ihor"]
[Result "1/2-1/2"]
[ECO "E48"]
[WhiteElo "2264"]
[BlackElo "2329"]
[Annotator "NA"]
[PlyCount "80"]
[EventDate "2019.12.15"]
[EventType "swiss"]
[EventCountry "CRO"]
[SourceTitle "playchess.com"]
[Source "ChessBase"]
[SourceQuality "1"]
[TimeControl "40/5400+30:1800+30"]

1. d4 {[%emt 0:00:30]} Nf6 {[%emt 0:11:30]} 2. c4 {[%emt 0:00:30]} e6 {[%emt 0:00:30]} 3. Nc3 {[%emt 0:00:30]} Bb4 {[%emt 0:00:00]} 4. e3 {[%emt 0:00:30]} c5 {[%emt 0:01:00]} 5. Bd3 {[%emt 0:00:30]} d5 {[%emt 0:02:30]} 6. cxd5 {[%emt 0:02:30]} Nxd5 {[%emt 0:00:30]} 7. Nge2 {[%emt 0:00:30]} cxd4 $11 {[%emt 0:00:00] Pin} 8. exd4 {[%emt 0:00:30]} Nc6 {[%emt 0:01:00]} 9. O-O {[%emt 0:02:30]} O-O {[%emt 0:00:30]} 10. Nxd5 {[%emt 0:00:00]} Qxd5 {[%emt 0:01:30]} 11. Qc2 {[%emt 0:01:00]} h6 {[%emt 0:03:30]} 12. a3 {[%emt 0:00:30]} Bd6 {[%emt 0:00:30]} 13. Rd1 {[%emt 0:01:30]} Bd7 {[%emt 0:08:30]} 14. Bh7+ {[%emt 0:01:30]} Kh8 {[%emt 0:00:00]} 15. Be4 {[%emt 0:00:30]} Qh5 {[%emt 0:01:00]} 16. Nf4 {[%emt 0:04:30]} Qa5 {[%emt 0:04:30]} 17. Be3 {[%emt 0:02:30]} Rac8 {[%emt 0:11:30]} 18. Qe2 {[%emt 0:02:30]} Rfd8 {[%emt 0:16:30]} 19. g3 {[%emt 0:08:30]} e5 {[%emt 0:09:30]} 20. dxe5 {[%emt 0:13:30]} Qxe5 {[%emt 0:02:30]} 21. Bd5 {[%emt 0:08:30]} Be8 {[%emt 0:05:06]} 22. h4 {[%emt 0:05:30]} b6 {[%emt 0:08:10]} 23. Qg4 {[%emt 0:04:30]} Qf6 {[%emt 0:02:57]} 24. Nh5 {[%emt 0:14:30]} Qg6 {[%emt 0:00:28]} 25. Qxg6 {[%emt 0:00:30]} fxg6 {[%emt 0:00:30]} 26. Nf4 {[%emt 0:00:30]} Be5 {[%emt 0:00:50]} 27. Bxc6 {[%emt 0:02:30]} Rxd1+ {[%emt 0:01:15]} 28. Rxd1 {[%emt 0:00:00]} Bxf4 {[%emt 0:00:17]} 29. Bxe8 {[%emt 0:19:47]} Bxe3 {[%emt 0:00:01]} 30. Bxg6 {[%emt 0:00:14]} Rc1 {[%emt 0:00:09]} 31. Rxc1 {[%emt 0:00:50]} Bxc1 {[%emt 0:00:01]} 32. a4 {[%emt 0:01:47]} Bxb2 {[%emt 0:00:03]} 33. f3 {[%emt 0:00:31]} Kg8 {[%emt 0:00:06]} 34. Kf2 {[%emt 0:00:12]} Bd4+ {[%emt 0:00:08]} 35. Ke2 {[%emt 0:00:03]} Kf8 {[%emt 0:00:05]} 36. g4 {[%emt 0:00:20]} Ke7 {[%emt 0:00:12]} 37. Kd3 {[%emt 0:00:13]} Bf2 {[%emt 0:00:09]} 38. h5 {[%emt 0:00:04]} Kf6 {[%emt 0:00:09]} 39. Kc4 {[%emt 0:00:27]} Ke5 {[%emt 0:00:07]} 40. Be4 {[%emt 0:00:23]} Kf4 {[%emt 0:00:10]} 1/2-1/2

[Event "26th Zadar Open 2019"]
[Site "Zadar"]
[Date "2019.12.20"]
[Round "7.20"]
[White "Antova, Gabriela"]
[Black "Mitev, Valentin"]
[Result "1-0"]
[ECO "E16"]
[WhiteElo "2314"]
[BlackElo "2233"]
[Annotator "NA RC"]
[PlyCount "87"]
[EventDate "2019.12.15"]
[EventType "swiss"]
[EventCountry "CRO"]
[SourceTitle "playchess.com"]
[Source "ChessBase"]
[SourceQuality "1"]
[TimeControl "40/5400+30:1800+30"]

1. d4 {[%emt 0:00:30]} Nf6 {[%emt 0:00:30]} 2. c4 {[%emt 0:00:00]} e6 {[%emt 0:00:30]} 3. Nf3 {[%emt 0:00:00]} b6 {[%emt 0:00:00]} 4. g3 {[%emt 0:08:30]} Ba6 {[%emt 0:02:00]} 5. Nbd2 {[%emt 0:00:30]} Be7 $11 {[%emt 0:05:30]} 6. Bg2 {[%emt 0:00:30]} Bb7 {[%emt 0:00:00]} 7. O-O {[%emt 0:00:30]} O-O {[%emt 0:00:00]} 8. Qc2 {[%emt 0:01:30]} c5 {[%emt 0:01:30]} 9. e4 {[%emt 0:01:30]} d6 {[%emt 0:00:30]} 10. e5 {[%emt 0:02:30]} dxe5 {[%emt 0:01:30]} 11. dxe5 {[%emt 0:00:30]} Ng4 {[%emt 0:00:30]} 12. h3 {[%emt 0:07:30]} Nh6 {[%emt 0:00:30]} 13. Ng5 {[%emt 0:00:30]} Bxg5 {[%emt 0:00:00]} 14. Bxb7 {[%emt 0:00:00]} Nd7 {[%emt 0:00:00]} 15. Bxa8 {[%emt 0:01:00]} Qxa8 {[%emt 0:00:00]} 16. f4 {[%emt 0:01:30]} Be7 {[%emt 0:00:00]} 17. Qe4 {[%emt 0:00:30]} Nf5 {[%emt 0:00:30]} 18. Qxa8 {[%emt 0:03:30]} Rxa8 {[%emt 0:00:30]} 19. Ne4 {[%emt 0:01:30]} f6 {[%emt 0:01:30]} 20. Rd1 {[%emt 0:04:30]} Nd4 {[%emt 0:00:30]} 21. exf6 {[%emt 0:00:00]} Nxf6 {[%emt 0:02:30]} 22. Nxf6+ {[%emt 0:04:00]} Bxf6 {[%emt 0:00:00]} 23. Rb1 {[%emt 0:01:30]} a6 {[%emt 0:02:00]} 24. Be3 {[%emt 0:05:30]} b5 {[%emt 0:00:30]} 25. Bxd4 {[%emt 0:01:30]} Bxd4+ {[%emt 0:00:00]} 26. Kg2 {[%emt 0:00:30]} b4 {[%emt 0:05:00]} 27. Rd3 {[%emt 0:10:30]} Rb8 {[%emt 0:00:30]} 28. b3 {[%emt 0:03:30]} a5 {[%emt 0:01:30]} 29. Rbd1 {[%emt 0:02:30]} Ra8 {[%emt 0:03:30]} 30. Kf3 {[%emt 0:03:30]} a4 {[%emt 0:00:30]} 31. Ke4 {[%emt 0:10:30]} axb3 {[%emt 0:00:30]} 32. axb3 {[%emt 0:00:00]} Ra3 {[%emt 0:04:30]} 33. Rxd4 {[%emt 0:03:00]} cxd4 {[%emt 0:00:00]} 34. Rd3 {[%emt 0:00:00]} Ra2 {[%emt 0:03:00]} 35. Kxd4 {[%emt 0:00:00]} Rc2 {[%emt 0:00:30]} 36. Kc5 {[%emt 0:03:30]} Rc3 {[%emt 0:00:00]} 37. Rd8+ {[%emt 0:00:30]} Kf7 {[%emt 0:00:00]} 38. Kxb4 {[%emt 0:00:00]} Rxg3 {[%emt 0:00:00]} 39. c5 {[%emt 0:01:00]} Ke7 {[%emt 0:00:00]} 40. Rd4 {[%emt 0:01:30]} Rxh3 {[%emt 0:00:30]} 41. c6 {[%emt 0:29:30]} Rh1 {[%emt 0:30:30]} 42. Kb5 {[%emt 0:01:49]} h5 {[%emt 0:00:30]} 43. c7 {[%emt 0:00:30]} Rc1 {[%emt 0:00:00]} 44. Kb6 {[%emt 0:00:11]} 1-0

[Event "26th Zadar Open 2019"]
[Site "Zadar"]
[Date "2019.12.20"]
[Round "7.21"]
[White "Stocko, Josip"]
[Black "Zelic, Mladen"]
[Result "1/2-1/2"]
[ECO "C63"]
[WhiteElo "2267"]
[BlackElo "2254"]
[Annotator "NA"]
[PlyCount "103"]
[EventDate "2019.12.15"]
[EventType "swiss"]
[EventCountry "CRO"]
[SourceTitle "playchess.com"]
[Source "ChessBase"]
[SourceQuality "1"]
[TimeControl "40/5400+30:1800+30"]

1. e4 {[%emt 0:04:30]} e5 {[%emt 0:00:30]} 2. Nf3 {[%emt 0:00:30]} Nc6 {[%emt 0:00:00]} 3. Bb5 {[%emt 0:00:30]} f5 {[%emt 0:00:00]} 4. Nc3 {[%emt 0:00:30]} Nf6 {[%emt 0:00:30]} 5. exf5 {[%emt 0:03:30]} e4 {[%emt 0:00:30]} 6. Nh4 {[%emt 0:01:30]} a6 {[%emt 0:08:30]} 7. Ba4 {[%emt 0:11:30]} Be7 {[%emt 0:07:30]} 8. Nxe4 {[%emt 0:25:30]} O-O {[%emt 0:07:30]} 9. Ng3 {[%emt 0:10:30]} d5 {[%emt 0:00:30]} 10. d3 {[%emt 0:14:30]} Ne8 {[%emt 0:11:30]} 11. Nf3 {[%emt 0:01:30]} Nd6 {[%emt 0:00:00]} 12. O-O {[%emt 0:04:27]} Nxf5 {[%emt 0:00:00]} 13. d4 {[%emt 0:05:34]} Bd6 {[%emt 0:09:30]} 14. Bg5 {[%emt 0:01:41]} Qe8 {[%emt 0:01:30]} 15. Bb3 {[%emt 0:01:50]} Qf7 {[%emt 0:03:30]} 16. Ne4 {[%emt 0:04:29]} Kh8 {[%emt 0:26:30]} 17. Nxd6 {[%emt 0:00:19]} Nxd6 {[%emt 0:00:30]} 18. Ne5 {[%emt 0:01:44]} Qf5 {[%emt 0:00:30]} 19. f4 {[%emt 0:01:25]} Be6 {[%emt 0:06:06]} 20. c3 {[%emt 0:00:37]} Nxe5 {[%emt 0:03:00]} 21. dxe5 {[%emt 0:00:09]} Ne4 {[%emt 0:00:01]} 22. Bh4 {[%emt 0:01:08]} c6 {[%emt 0:00:26]} 23. Bc2 {[%emt 0:00:53]} Qg6 {[%emt 0:00:21]} 24. Qe2 {[%emt 0:01:02]} Bf5 {[%emt 0:01:19]} 25. Rac1 {[%emt 0:00:14]} Rf7 {[%emt 0:00:32]} 26. Qe3 {[%emt 0:01:09]} Raf8 {[%emt 0:01:09]} 27. h3 {[%emt 0:00:38]} h5 {[%emt 0:01:38]} 28. Bd1 {[%emt 0:00:23]} Be6 {[%emt 0:01:52]} 29. Bc2 {[%emt 0:00:31]} Bf5 {[%emt 0:00:16]} 30. Bd1 {[%emt 0:00:04]} Be6 {[%emt 0:00:02]} 31. Kh2 {[%emt 0:01:19]} Qh6 {[%emt 0:03:22]} 32. Bg5 {[%emt 0:00:46]} Qg6 {[%emt 0:01:42]} 33. Bc2 {[%emt 0:00:17]} Bf5 {[%emt 0:00:24]} 34. Bh4 {[%emt 0:00:32]} Qh6 {[%emt 0:01:24]} 35. c4 {[%emt 0:00:22]} Bh7 {[%emt 0:02:06]} 36. cxd5 {[%emt 0:00:31]} cxd5 {[%emt 0:00:27]} 37. Bxe4 {[%emt 0:00:53]} Bxe4 {[%emt 0:00:19]} 38. Bg5 {[%emt 0:00:20]} Qg6 {[%emt 0:00:34]} 39. g4 {[%emt 0:00:48]} Qe6 {[%emt 0:02:27]} 40. Kg3 {[%emt 0:00:47]} Rc8 {[%emt 0:00:38]} 41. Rxc8+ {[%emt 0:30:28]} Qxc8 {[%emt 0:00:25]} 42. Rc1 {[%emt 0:00:00]} Rc7 {[%emt 0:00:00]} 43. Rxc7 {[%emt 0:00:00]} Qxc7 {[%emt 0:00:00]} 44. e6 {[%emt 0:00:00]} Kg8 {[%emt 0:05:30]} 45. gxh5 {[%emt 0:00:00]} Qc2 {[%emt 0:03:30]} 46. Kh4 {[%emt 0:01:38]} Qxb2 {[%emt 0:02:30]} 47. Qc5 {[%emt 0:01:00]} d4 {[%emt 0:01:30]} 48. e7 {[%emt 0:00:55]} Qf2+ {[%emt 0:05:07]} 49. Kg4 {[%emt 0:00:02]} Qe2+ {[%emt 0:04:49]} 50. Kh4 {[%emt 0:00:30]} Qe1+ {[%emt 0:01:48]} 51. Kg4 {[%emt 0:00:18]} Qe2+ {[%emt 0:00:49]} 52. Kh4 {[%emt 0:00:05]} 1/2-1/2